bitfinex/quotes_SOLUSD_20250821
["timestamp","ask_amount","ask_price","bid_price","bid_amount"]
[1755743212153,0.78,187.03,187.02,7.63597869]
[1755743212362,0.78,187.03,187.02,3.867989]
[1755743212863,0.78,187.03,187.02,29.867989]
[1755743213279,0.78,187.03,187.02,33.63597869]
[1755743213860,0.78,187.03,187.02,7.63597869]
[1755743214716,0.78,187.03,187.02,3.867989]
[1755743216277,0.06,187.03,187.02,7.63597869]
[1755743216459,0.06,187.03,187.02,3.867989]
[1755743216653,0.06,187.03,187.02,7.63597869]
[1755743217869,0.06,187.03,187.02,33.63597869]
[1755743218087,0.06,187.03,187.02,7.63597869]
[1755743218394,0.06,187.03,187.02,8.33597869]
[1755743218595,0.06,187.03,187.02,34.33597869]
[1755743218761,0.06,187.03,187.02,33.63597869]
[1755743221608,0.06,187.03,187.02,29.867989]
[1755743221788,0.06,187.03,187.02,33.63597869]
[1755743224178,0.06,187.03,187.02,29.867989]
[1755743224372,0.06,187.03,187.02,33.63597869]
[1755743224806,0.06,187.03,187.02,29.867989]
[1755743225105,0.06,187.03,187.02,33.63597869]
[1755743226689,0.06,187.06,187.04,13.59559401]
[1755743226882,0.06,187.06,187.05,17.79006841]
[1755743227209,0.06,187.06,187.05,18.49006841]
[1755743227624,0.06,187.06,187.05,3.76798969]
[1755743228693,0.06,187.06,187.05,5.91052169]
[1755743231932,0.74,187.06,187.05,28.142532]
[1755743232101,0.74,187.06,187.05,3.76798969]
[1755743232725,0.74,187.06,187.02,0.03]
[1755743232924,0.74,187.06,187.03,3.76798969]
[1755743233122,0.74,187.06,187.02,5.94098069]
[1755743233426,0.74,187.06,187.03,3.76798969]
[1755743233937,0.74,187.06,187.02,2.172991]
[1755743234231,0.74,187.06,187.03,3.76798969]
[1755743235005,0.74,187.06,187.04,3.76798969]
[1755743235335,0.06,187.06,187.05,3.76798969]
[1755743236717,0.74,187.06,187.05,3.76798969]
[1755743238527,0.74,187.06,187.02,3.79798969]
[1755743239132,4.50798969,187.06,187.02,0.03]
[1755743239636,0.68,187.05,187.02,0.03]
[1755743241738,3.76798969,187.03,187.02,0.03]
[1755743242044,17.79006841,187.03,187.02,0.03]
[1755743242247,18.47006841,187.03,187.02,0.03]
[1755743243038,56.91006841,187.03,187.02,0.03]
[1755743247557,43.3144744,187.03,187.02,0.03]
[1755743248760,14.02207872,187.02,187.0,0.03]
[1755743248954,17.79006841,187.01,187.0,0.03]
[1755743249141,29.76798969,186.99,186.98,0.03]
[1755743249546,30.46798969,186.99,186.98,0.03]
[1755743250067,68.90798969,186.99,186.98,0.03]
[1755743250365,0.7,186.99,186.98,0.03]
[1755743250568,42.20798969,186.99,186.98,0.03]
[1755743250871,42.90798969,186.99,186.98,0.03]
[1755743252676,39.14,186.99,186.98,0.03]
[1755743252879,0.7,187.02,186.98,0.03]
[1755743253058,38.44,186.99,186.98,0.71]
[1755743253469,38.44,186.99,186.98,0.03]
[1755743254771,38.44,186.99,186.98,0.71]
[1755743255078,38.44,186.99,186.98,0.03]
[1755743257853,0.7,187.03,186.98,0.71]
[1755743258055,38.44,187.02,186.99,0.68]
[1755743258382,42.90798969,187.02,186.98,0.03]
[1755743258592,42.90798969,187.02,186.98,0.71]
[1755743258888,3.76798969,187.0,186.98,0.03]
[1755743259052,38.44,186.99,186.98,0.03]
[1755743259260,38.44,186.99,186.98,0.71]
[1755743259468,4.46798969,187.03,186.98,3.79798969]
[1755743259675,38.44,187.02,186.98,3.79798969]
[1755743259882,38.44,187.02,186.99,0.68]
[1755743260280,38.44,187.02,186.98,3.79798969]
[1755743260455,42.90798969,187.02,186.98,0.03]
[1755743260656,42.90798969,187.02,186.98,0.71]
[1755743261097,3.76798969,187.01,186.98,0.03]
[1755743261274,3.76798969,187.0,186.98,0.03]
[1755743261470,42.20798969,186.99,186.98,0.03]
[1755743261871,42.90798969,186.99,186.98,0.03]
[1755743264393,0.7,187.01,186.98,0.03]
[1755743264599,42.20798969,187.0,186.98,0.03]
[1755743264810,38.44,187.0,186.98,0.03]
[1755743265016,4.46798969,186.99,186.98,0.03]
[1755743265522,42.90798969,186.99,186.98,0.03]
[1755743265728,39.14,186.99,186.98,0.03]
[1755743266078,42.90798969,186.99,186.98,0.03]
[1755743267216,43.3344744,186.99,186.98,0.03]
[1755743267517,56.93006841,186.99,186.98,0.03]
[1755743271885,18.49006841,186.99,186.98,0.03]
[1755743272199,56.93006841,186.99,186.98,0.03]
[1755743273102,18.49006841,186.99,186.98,0.03]
[1755743273303,56.91006841,186.99,186.98,0.03]
[1755743275792,18.49006841,186.99,186.98,0.03]
[1755743276006,56.91006841,186.99,186.98,0.03]
[1755743278487,18.49006841,186.99,186.98,0.03]
[1755743278687,53.14207872,186.99,186.98,0.03]
[1755743278887,18.49006841,186.99,186.98,0.03]
[1755743279108,56.91006841,186.99,186.98,0.03]
[1755743279698,53.14207872,186.99,186.98,0.03]
[1755743280103,56.91006841,186.99,186.98,0.03]
[1755743281521,53.14207872,186.99,186.98,0.03]
[1755743281710,56.91006841,186.99,186.98,0.03]
[1755743282422,53.14207872,186.99,186.98,0.03]
[1755743282717,56.21006841,186.99,186.98,0.03]
[1755743283919,42.6144744,186.99,186.98,0.03]
[1755743284292,38.42,186.99,186.98,0.03]
[1755743284523,42.18798969,186.99,186.98,0.72]
[1755743285110,42.18798969,186.99,186.98,0.03]
[1755743285305,42.6144744,186.99,186.98,0.03]
[1755743285629,56.21006841,186.99,186.98,0.03]
[1755743285790,42.6144744,186.99,186.98,0.72]
[1755743286226,38.84648471,186.99,186.98,0.03]
[1755743286527,3.76798969,187.02,186.98,0.72]
[1755743286694,38.42,187.01,186.98,0.72]
[1755743286893,3.76798969,187.0,186.98,0.03]
[1755743287097,38.42,186.99,186.98,0.72]
[1755743288048,38.4,186.99,186.98,0.72]
[1755743289642,38.4,186.99,186.98,0.03]
[1755743289837,3.76798969,187.0,186.98,0.03]
[1755743290141,38.4,186.99,186.98,0.72]
[1755743290344,42.16798969,186.99,186.98,0.03]
[1755743291031,38.4,186.99,186.98,0.03]
[1755743291246,56.87006841,186.99,186.98,0.03]
[1755743292847,56.19006841,186.99,186.98,0.03]
[1755743293049,56.87006841,186.99,186.98,0.03]
[1755743293344,18.47006841,186.99,186.98,0.03]
[1755743293557,56.87006841,186.99,186.98,0.03]
[1755743293719,18.47006841,186.99,186.98,0.03]
[1755743293919,56.87006841,186.99,186.98,0.03]
[1755743294742,18.47006841,186.99,186.98,0.03]
[1755743295114,56.87006841,186.99,186.98,0.03]
[1755743300954,60.4474249,186.99,186.98,0.03]
[1755743301130,56.87006841,186.99,186.98,0.03]
[1755743301730,60.4479783,186.99,186.98,0.03]
[1755743302233,60.42823492,186.99,186.98,0.03]
[1755743304228,61.76825375,186.99,186.98,0.03]
[1755743304634,14.02207872,186.98,186.95,0.03]
[1755743304833,21.5580581,186.96,186.95,0.03]
[1755743305059,64.85637058,186.96,186.95,0.03]
[1755743305274,65.54637058,186.96,186.95,0.03]
[1755743305439,61.77838089,186.96,186.95,0.03]
[1755743306638,60.43823492,186.96,186.95,0.03]
[1755743307349,22.05823492,186.96,186.95,0.03]
[1755743307562,60.43823492,186.96,186.95,0.03]
[1755743307766,22.05823492,186.96,186.95,0.03]
[1755743307951,60.43823492,186.96,186.95,0.03]
[1755743308158,60.93823492,186.96,186.95,0.03]
[1755743310853,21.86823492,186.96,186.95,0.03]
[1755743311169,60.10607335,186.96,186.95,0.03]
[1755743311569,60.24823492,186.96,186.95,0.03]
[1755743311745,60.93823492,186.96,186.95,0.03]
[1755743318158,22.05823492,186.96,186.95,0.03]
[1755743318359,60.41823492,186.96,186.95,0.03]
[1755743321797,22.05823492,186.96,186.95,0.03]
[1755743321990,60.41823492,186.96,186.95,0.03]
[1755743322582,21.36823492,186.96,186.95,0.03]
[1755743322784,59.72823492,186.96,186.95,0.03]
[1755743323087,60.22823492,186.96,186.95,0.03]
[1755743323286,60.91823492,186.96,186.95,0.03]
[1755743323488,62.25855264,186.96,186.95,0.03]
[1755743323662,60.91823492,186.96,186.95,0.03]
[1755743323859,62.25850348,186.96,186.95,0.03]
[1755743324288,60.91823492,186.96,186.95,0.03]
[1755743324588,22.55823492,186.96,186.95,0.03]
[1755743324788,66.02651775,186.96,186.95,0.03]
[1755743324979,47.5580581,186.94,186.93,0.03]
[1755743325184,89.49622461,186.94,186.93,0.03]
[1755743325390,90.18622461,186.94,186.93,0.03]
[1755743326487,47.36823492,186.94,186.93,0.03]
[1755743326800,85.70823492,186.94,186.93,0.03]
[1755743327311,47.36823492,186.94,186.93,0.03]
[1755743327510,82.13006841,186.94,186.93,0.03]
[1755743327685,43.79006841,186.94,186.93,0.03]
[1755743328002,82.63006841,186.94,186.93,0.03]
[1755743328207,86.3980581,186.94,186.93,0.03]
[1755743328576,60.3980581,186.94,186.93,0.03]
[1755743329086,57.32006841,186.94,186.93,0.03]
[1755743329302,61.0880581,186.94,186.93,0.03]
[1755743329693,60.3980581,186.94,186.93,0.03]
[1755743332108,56.63006841,186.94,186.93,0.03]
[1755743332502,18.29006841,186.94,186.93,0.03]
[1755743332709,44.29006841,186.94,186.93,0.03]
[1755743332912,82.63006841,186.94,186.93,0.03]
[1755743333406,44.29006841,186.94,186.93,0.03]
[1755743333592,82.63006841,186.94,186.93,0.03]
[1755743333913,87.0880581,186.94,186.93,0.03]
[1755743334085,48.7480581,186.94,186.93,0.03]
[1755743334281,87.0880581,186.94,186.93,0.03]
[1755743335314,83.32006841,186.94,186.93,0.03]
[1755743336504,83.30006841,186.94,186.93,0.03]
[1755743337111,86.87615333,186.94,186.93,0.03]
[1755743338691,48.55615333,186.94,186.93,0.03]
[1755743338891,86.87615333,186.94,186.93,0.03]
[1755743341092,48.55615333,186.94,186.93,0.03]
[1755743341296,86.87615333,186.94,186.93,0.03]
[1755743341726,48.55615333,186.94,186.93,0.03]
[1755743341912,86.87615333,186.94,186.93,0.03]
[1755743342114,86.18615333,186.94,186.93,0.03]
[1755743342307,87.52646624,186.94,186.93,0.03]
[1755743344399,87.58646624,186.94,186.93,0.03]
[1755743345111,49.26646624,186.94,186.93,0.03]
[1755743345421,61.58646624,186.94,186.93,0.03]
[1755743345625,61.58646624,186.94,186.93,0.7]
[1755743345824,61.58646624,186.94,186.93,0.03]
[1755743346024,61.56646624,186.94,186.93,0.03]
[1755743347005,62.25646624,186.94,186.93,0.03]
[1755743347838,66.02445593,186.94,186.93,0.03]
[1755743348437,70.5365561,186.94,186.93,0.03]
[1755743349516,69.8465561,186.94,186.93,0.03]
[1755743350132,70.5365561,186.94,186.93,0.03]
[1755743350435,70.53654791,186.94,186.93,0.03]
[1755743352149,57.79846836,186.94,186.93,0.03]
[1755743352323,60.20808427,186.94,186.93,0.03]
[1755743352736,69.84654791,186.94,186.93,0.03]
[1755743353844,31.54654791,186.94,186.93,0.03]
[1755743354033,69.84654791,186.94,186.93,0.03]
[1755743355542,70.53654791,186.94,186.93,0.03]
[1755743356546,69.84654791,186.94,186.93,0.03]
[1755743356742,31.54654791,186.94,186.93,0.03]
[1755743356934,20.14129484,186.94,186.93,0.7]
[1755743357135,0.56,186.94,186.93,0.7]
[1755743357440,37.44,186.94,186.93,3.10961591]
[1755743357660,37.44,186.94,186.93,5.25409991]
[1755743358834,0.06,186.96,186.93,5.25409991]
[1755743359043,38.28,186.95,186.94,2.40961591]
[1755743359225,0.06,186.96,186.94,2.40961591]
[1755743359429,38.28,186.95,186.93,2.174484]
[1755743359643,2.40961591,186.94,186.93,2.174484]
[1755743360144,40.68961591,186.94,186.93,2.174484]
[1755743360345,42.04227526,186.94,186.93,2.174484]
[1755743360648,3.76227526,186.94,186.93,0.03]
[1755743360825,42.02227526,186.94,186.93,0.03]
[1755743361750,3.82227526,186.96,186.93,0.03]
[1755743362251,38.26,186.95,186.93,0.03]
[1755743362427,3.82227526,186.96,186.93,0.03]
[1755743362428,38.26,186.94,186.93,0.03]
[1755743362624,0.06,186.96,186.94,3.822275]
[1755743362830,38.26,186.95,186.94,3.822275]
[1755743363233,38.26,186.95,186.94,29.822275]
[1755743363638,3.76227526,186.95,186.94,29.822275]
[1755743363954,42.02227526,186.95,186.94,3.822275]
[1755743365845,3.76227526,186.95,186.94,3.822275]
[1755743366055,42.02227526,186.95,186.94,3.822275]
[1755743366238,3.76227526,186.95,186.94,3.822275]
[1755743366441,42.02227526,186.95,186.94,3.822275]
[1755743367439,42.00227526,186.95,186.94,3.822275]
[1755743368736,38.24,186.95,186.94,3.822275]
[1755743369338,3.82227526,186.96,186.94,3.822275]
[1755743369737,38.24,186.95,186.94,3.822275]
[1755743370254,0.06,186.96,186.94,7.58455026]
[1755743370448,38.24,186.95,186.94,7.58455026]
[1755743370648,38.24,186.95,186.94,3.822275]
[1755743373239,38.22,186.95,186.94,3.822275]
[1755743375147,38.22,186.95,186.93,3.79227526]
[1755743375345,0.06,186.96,186.93,3.79227526]
[1755743375667,38.22,186.95,186.93,3.79227526]
[1755743375960,38.22,186.95,186.93,0.03]
[1755743376165,0.06,186.96,186.93,0.03]
[1755743376366,42.67227526,186.95,186.93,0.03]
[1755743376572,0.69,186.94,186.93,0.03]
[1755743376761,42.67227526,186.95,186.93,0.03]
[1755743377146,38.91,186.94,186.93,0.03]
[1755743377342,0.69,186.94,186.93,0.03]
[1755743377709,38.22,186.94,186.93,0.03]
[1755743379008,38.22,186.94,186.93,3.79227526]
[1755743379196,0.06,186.96,186.93,3.79227526]
[1755743379515,38.28,186.96,186.94,3.76227526]
[1755743379878,38.28,186.96,186.95,3.76227526]
[1755743380686,0.06,186.96,186.95,3.76227526]
[1755743382429,0.06,186.96,186.93,0.03]
[1755743382731,0.06,186.96,186.95,3.76227526]
[1755743385516,0.06,186.96,186.93,0.03]
[1755743385714,0.06,186.96,186.95,3.76227526]
[1755743386219,0.06,186.96,186.95,29.76227526]
[1755743387744,0.75,186.96,186.95,29.76227526]
[1755743387913,0.06,186.96,186.95,29.76227526]
[1755743388320,0.06,186.96,186.95,3.76227526]
[1755743388617,0.75,186.96,186.94,3.76227526]
[1755743389920,0.06,186.96,186.94,3.76227526]
[1755743390723,0.69,186.95,186.93,0.03]
[1755743391437,0.69,186.94,186.93,0.03]
[1755743393023,38.18,186.94,186.93,3.79227526]
[1755743393434,0.78,186.96,186.93,3.79227526]
[1755743393827,0.78,186.96,186.94,3.76227526]
[1755743394043,38.18,186.95,186.94,3.76227526]
[1755743394843,38.9,186.95,186.93,0.03]
[1755743395040,0.72,186.94,186.93,3.79227526]
[1755743395714,0.72,186.94,186.93,0.03]
[1755743399958,0.72,186.94,186.93,3.79227526]
[1755743400266,0.72,186.94,186.93,0.03]
[1755743400473,4.48227526,186.94,186.91,0.03]
[1755743400630,3.76227526,186.92,186.91,0.03]
[1755743401051,18.50435398,186.92,186.87,0.03]
[1755743401242,3.76227526,186.9,186.87,0.03]
[1755743401626,0.72,186.9,186.87,0.03]
[1755743402240,4.48227526,186.9,186.87,0.03]
[1755743403341,18.50435398,186.9,186.87,0.03]
[1755743404843,56.66435398,186.9,186.87,0.03]
[1755743406057,4.48227526,186.92,186.87,3.79227526]
[1755743406261,42.64227526,186.9,186.87,0.03]
[1755743406769,42.78443683,186.9,186.87,0.03]
[1755743407839,56.66435398,186.9,186.87,0.03]
[1755743408153,0.14216157,186.88,186.87,0.03]
[1755743408340,17.78435398,186.88,186.87,0.03]
[1755743408663,56.66435398,186.88,186.87,0.03]
[1755743409965,4.48227526,186.91,186.87,3.79227526]
[1755743410136,38.16,186.9,186.88,3.76227526]
[1755743410337,38.16,186.89,186.88,3.76227526]
[1755743410547,0.72,186.92,186.88,3.76227526]
[1755743410866,38.16,186.91,186.88,3.76227526]
[1755743413155,0.72,186.9,186.87,0.03]
[1755743413542,4.48227526,186.9,186.87,0.03]
[1755743414069,0.72,186.89,186.87,0.03]
[1755743414371,38.14,186.88,186.87,0.03]
[1755743415445,38.14,186.88,186.87,3.79227526]
[1755743417057,13.73775558,186.95,186.87,3.79227526]
[1755743417257,0.72,186.92,186.87,0.03]
[1755743417563,38.14,186.91,186.88,3.76227526]
[1755743417763,38.86,186.91,186.88,3.76227526]
[1755743418747,38.14,186.91,186.89,3.76227526]
[1755743419068,38.14,186.91,186.9,3.76227526]
[1755743419244,38.14,186.91,186.89,3.76227526]
[1755743419446,38.14,186.91,186.9,3.76227526]
[1755743419747,0.86216157,186.95,186.9,3.76227526]
[1755743419947,38.86,186.94,186.91,3.76227526]
[1755743421671,38.14,186.94,186.92,3.76227526]
[1755743421969,38.14,186.94,186.93,3.76227526]
[1755743422470,38.86,186.94,186.91,3.76227526]
[1755743422661,0.72,186.93,186.9,3.76227526]
[1755743423166,0.72,186.93,186.87,26.03]
[1755743423362,0.72,186.93,186.89,3.76227526]
[1755743423567,4.48227526,186.93,186.88,3.76227526]
[1755743423755,0.71,186.92,186.88,3.76227526]
[1755743423952,38.83,186.91,186.89,3.76227526]
[1755743424773,38.12,186.91,186.89,3.76227526]
[1755743425466,0.71,186.93,186.89,3.76227526]
[1755743425670,38.83,186.92,186.89,3.76227526]
[1755743426173,0.71,186.91,186.89,3.76227526]
[1755743427166,38.12,186.92,186.89,3.76227526]
[1755743427567,0.71,186.92,186.87,26.03]
[1755743427773,38.12,186.91,186.9,3.76227526]
[1755743428661,0.71,186.92,186.9,3.76227526]
[1755743428872,0.71,186.95,186.91,3.76227526]
[1755743429055,38.83,186.94,186.91,3.76227526]
[1755743429264,0.71,186.93,186.91,3.76227526]
[1755743429463,0.71,186.92,186.9,3.76227526]
[1755743430373,38.12,186.91,186.9,3.76227526]
[1755743431277,38.83,186.91,186.9,3.76227526]
[1755743431575,38.83,186.91,186.88,3.76227526]
[1755743431759,0.71,186.9,186.88,3.76227526]
[1755743431955,0.71,186.9,186.87,26.03]
[1755743432156,0.71,186.89,186.87,26.03]
[1755743432357,0.71,186.89,186.88,3.76227526]
[1755743433663,38.83,186.91,186.88,3.76227526]
[1755743434070,0.71,186.94,186.9,3.76227526]
[1755743434275,38.1,186.93,186.9,0.09]
[1755743434875,38.1,186.93,186.88,26.0]
[1755743435180,38.1,186.93,186.89,0.09]
[1755743435486,38.1,186.93,186.92,3.76227526]
[1755743435695,0.06,186.96,186.92,3.85227526]
[1755743435986,0.06,186.96,186.95,29.76227526]
[1755743436356,0.06,186.96,186.95,3.76227526]
[1755743438867,0.06,186.96,186.91,26.0]
[1755743439084,0.06,186.96,186.95,3.76227526]
[1755743439670,0.77,186.96,186.95,3.76227526]
[1755743440068,0.77,186.96,186.91,26.0]
[1755743440262,4.53227526,186.96,186.88,79.8]
[1755743440468,0.71,186.95,186.91,26.0]
[1755743440690,0.71,186.95,186.91,3.76227526]
[1755743440857,3.76227526,186.94,186.89,3.76227526]
[1755743441178,0.71,186.93,186.89,3.76227526]
[1755743441381,38.08,186.92,186.88,3.76227526]
[1755743441562,38.08,186.92,186.89,0.03]
[1755743441771,0.71,186.91,186.89,0.03]
[1755743442360,0.71,186.9,186.89,0.03]
[1755743443595,38.79,186.9,186.89,0.03]
[1755743444094,0.71,186.9,186.89,3.79227526]
[1755743444263,38.79,186.9,186.89,3.79227526]
[1755743445092,0.71,186.9,186.89,3.79227526]
[1755743445256,38.08,186.9,186.89,3.79227526]
[1755743445886,0.71,186.91,186.89,3.79227526]
[1755743446073,38.08,186.9,186.89,3.79227526]
[1755743446992,38.79,186.9,186.89,0.03]
[1755743447565,0.71,186.9,186.89,0.03]
[1755743447873,42.69443683,186.9,186.89,0.03]
[1755743448076,56.57435398,186.9,186.89,0.03]
[1755743448275,14.02207872,186.89,186.87,0.03]
[1755743448488,17.78435398,186.88,186.87,0.03]
[1755743448665,52.81207872,186.88,186.87,0.03]
[1755743448867,56.57435398,186.88,186.87,0.03]
[1755743457288,18.49435398,186.88,186.87,0.03]
[1755743457479,56.57435398,186.88,186.87,0.03]
[1755743458287,191.22079498,186.88,186.87,0.03]
[1755743459388,191.22079498,186.88,186.85,0.03]
[1755743459389,13.59559401,186.86,186.85,0.03]
[1755743459578,55.86435398,186.86,186.85,0.03]
[1755743459774,56.52435398,186.86,186.85,0.03]
[1755743460194,62.43318524,186.86,186.85,0.03]
[1755743460788,65.22719638,186.86,186.85,0.03]
[1755743460990,63.08064038,186.86,186.85,0.03]
[1755743461982,40.02207872,186.84,186.83,0.2]
[1755743462200,85.62662924,186.84,186.83,0.2]
[1755743462496,85.62662924,186.84,186.8,0.2]
[1755743462497,43.78435398,186.81,186.8,0.2]
[1755743462673,81.86435398,186.81,186.8,0.2]
[1755743462878,82.52435398,186.81,186.8,0.2]
[1755743464069,56.52435398,186.81,186.8,0.2]
[1755743471083,14.02207872,186.8,186.79,0.2]
[1755743471282,18.44435398,186.8,186.79,0.2]
[1755743471470,40.02207872,186.77,186.76,0.03]
[1755743471674,85.60662924,186.77,186.76,0.03]
[1755743471872,14.02207872,186.76,186.74,0.03]
[1755743472099,17.78435398,186.73,186.72,0.03]
[1755743472300,17.78435398,186.73,186.68,0.2]
[1755743472301,39.59559401,186.71,186.68,0.2]
[1755743472479,81.58003084,186.71,186.68,0.2]
[1755743472680,82.24003084,186.71,186.68,0.2]
[1755743473001,82.52435398,186.71,186.68,0.2]
[1755743473191,14.02207872,186.7,186.68,0.2]
[1755743473391,59.60662924,186.69,186.68,0.2]
[1755743473584,60.26662924,186.69,186.68,0.2]
[1755743476684,56.50435398,186.69,186.68,0.2]
[1755743477017,60.26662924,186.69,186.68,0.2]
[1755743477185,3.76227526,186.61,186.59,0.32]
[1755743477380,38.08,186.6,186.59,0.32]
[1755743477721,38.08,186.6,186.56,3.76227526]
[1755743477902,38.08,186.6,186.54,26.0]
[1755743478079,38.08,186.6,186.56,3.76227526]
[1755743478280,38.08,186.6,186.58,3.76227526]
[1755743478495,38.08,186.6,186.59,4.08227526]
[1755743480180,38.08,186.6,186.59,0.32]
[1755743480380,38.08,186.6,186.59,4.08227526]
[1755743481504,38.08,186.6,186.59,0.32]
[1755743481693,38.08,186.6,186.59,4.08227526]
[1755743483300,13.59559401,186.66,186.59,4.08227526]
[1755743483499,38.08,186.65,186.6,0.32]
[1755743483683,38.08,186.65,186.64,3.76227526]
[1755743484006,38.08,186.65,186.64,4.08227526]
[1755743484307,38.08,186.65,186.63,3.76227526]
[1755743484505,38.08,186.65,186.62,3.76227526]
[1755743484708,0.14216157,186.64,186.6,0.32]
[1755743484890,0.14216157,186.64,186.61,3.76227526]
[1755743485704,0.14216157,186.64,186.62,4.08227526]
[1755743486408,0.14216157,186.64,186.62,3.76227526]
[1755743486906,38.08,186.63,186.62,3.76227526]
[1755743487284,38.08,186.63,186.6,0.32]
[1755743487489,38.08,186.63,186.62,3.76227526]
[1755743487694,13.73775558,186.65,186.62,3.76227526]
[1755743487899,0.28432314,186.7,186.63,0.32]
[1755743487900,38.08,186.64,186.63,0.32]
[1755743488209,38.08,186.64,186.62,3.76227526]
[1755743488619,0.14216157,186.63,186.6,3.76227526]
[1755743488802,0.69,186.62,186.58,3.76227526]
[1755743489119,38.08,186.61,186.58,3.76227526]
[1755743489808,38.08,186.61,186.56,0.32]
[1755743490012,38.08,186.61,186.58,3.76227526]
[1755743490608,38.77,186.61,186.58,3.76227526]
[1755743490806,38.08,186.6,186.56,0.32]
[1755743491012,38.06,186.59,186.55,0.03]
[1755743491313,38.06,186.59,186.58,3.76227526]
[1755743491500,18.19003084,186.63,186.58,3.76227526]
[1755743491702,0.69,186.62,186.58,3.76227526]
[1755743491915,38.06,186.61,186.58,3.76227526]
[1755743492101,38.06,186.61,186.59,3.76227526]
[1755743492295,38.06,186.6,186.59,3.76227526]
[1755743492499,0.06,186.73,186.6,26.0]
[1755743492690,7.52455026,186.72,186.61,0.32]
[1755743493011,0.14216157,186.69,186.66,3.76227526]
[1755743493316,0.69,186.68,186.62,0.32]
[1755743493514,0.14216157,186.67,186.62,0.32]
[1755743493809,0.14216157,186.67,186.65,3.76227526]
[1755743493810,38.06,186.66,186.65,3.76227526]
[1755743496286,38.06,186.66,186.58,0.03]
[1755743496489,38.06,186.66,186.65,3.76227526]
[1755743496930,38.06,186.66,186.65,4.08227526]
[1755743498991,38.06,186.66,186.65,3.76227526]
[1755743500627,38.75,186.66,186.65,3.76227526]
[1755743501325,38.75,186.66,186.59,0.32]
[1755743501492,38.20216157,186.66,186.65,3.76227526]
[1755743501898,38.06,186.66,186.65,3.76227526]
[1755743502134,38.75,186.66,186.65,3.76227526]
[1755743502302,38.89216157,186.66,186.65,3.76227526]
[1755743502742,38.89216157,186.66,186.6,26.0]
[1755743502743,38.89216157,186.66,186.58,0.03]
[1755743503020,0.69,186.65,186.64,3.76227526]
[1755743503223,0.69,186.65,186.63,3.76227526]
[1755743503525,0.69,186.64,186.63,3.76227526]
[1755743503904,38.75,186.64,186.63,3.76227526]
[1755743504434,38.75,186.64,186.58,0.03]
[1755743504602,0.28432314,186.61,186.58,3.79227526]
[1755743504921,0.14216157,186.63,186.6,3.76227526]
[1755743505221,0.14216157,186.61,186.58,0.03]
[1755743505422,0.69,186.6,186.59,3.76227526]
[1755743505799,0.69,186.6,186.58,0.03]
[1755743506108,0.14216157,186.61,186.59,3.76227526]
[1755743506428,0.83216157,186.61,186.6,3.76227526]
[1755743506815,38.89216157,186.61,186.58,0.03]
[1755743507023,0.83216157,186.61,186.6,3.76227526]
[1755743507216,38.06,186.61,186.6,3.76227526]
[1755743508919,0.69,186.63,186.6,3.76227526]
[1755743509136,38.06,186.61,186.58,0.03]
[1755743509339,38.06,186.6,186.58,0.35]
[1755743509643,38.06,186.6,186.58,0.03]
[1755743510234,38.06,186.6,186.59,3.76227526]